[Event "CZE-ch Youth G10-G12-G14 2022"]
[Site "Luhacovice"]
[Date "2022.03.16"]
[Round "6.8"]
[White "Ramseier, Jana S."]
[Black "Mazurkova Viktorie"]
[Result "0-1"]
[ECO "C25"]
[WhiteElo "2090"]
[BlackElo "1000"]
[Annotator "ChessBase"]
[PlyCount "88"]
[EventDate "2022.03.12"]
[EventType "swiss"]
[EventCountry "CZE"]
[SourceTitle "playchess.com"]
[Source "ChessBase"]
[SourceQuality "1"]
[TimeControl "40/5400+30:1800+30"]

1. e4 {[%emt 0:00:04]} e5 {[%emt 0:00:06]} 2. Nc3 {[%emt 0:00:06]} Nc6 {[%emt 0:00:18]} 3. d4 {[%emt 0:00:18]} exd4 {[%emt 0:00:27]} 4. Nd5 {[%emt 0:00:17]} d6 {[%emt 0:01:12]} 5. Nf3 {[%emt 0:00:17]} Bg4 {[%emt 0:01:11]} 6. Be2 {[%emt 0:01:13]} Bxf3 {[%emt 0:01:16]} 7. Bxf3 {[%emt 0:00:20]} Nf6 {[%emt 0:00:39]} 8. Qe2 {[%emt 0:01:34]} Be7 {[%emt 0:01:21]} 9. Bg5 {[%emt 0:00:41]} Nxd5 {[%emt 0:00:52]} 10. exd5 {[%emt 0:00:25]} Ne5 {[%emt 0:01:22]} 11. O-O {[%emt 0:01:31]} Nxf3+ {[%emt 0:00:47]} 12. Qxf3 {[%emt 0:01:11]} Bxg5 {[%emt 0:00:25]} 13. Rae1+ {[%emt 0:00:37]} Be7 {[%emt 0:00:20]} 14. Qh3 {[%emt 0:01:06]} O-O {[%emt 0:01:06]} 15. Rd1 {[%emt 0:02:49]} Bf6 {[%emt 0:01:20]} 16. Qb3 {[%emt 0:03:24]} b6 {[%emt 0:01:26]} 17. c3 {[%emt 0:00:14]} dxc3 {[%emt 0:00:33]} 18. bxc3 {[%emt 0:00:34]} Re8 {[%emt 0:00:27]} 19. Rfe1 {[%emt 0:00:43]} Re7 {[%emt 0:00:55]} 20. a4 {[%emt 0:00:33]} Qe8 {[%emt 0:00:33]} 21. g3 {[%emt 0:00:32]} Rxe1+ {[%emt 0:00:31]} 22. Rxe1 {[%emt 0:00:29]} Qxe1+ {[%emt 0:00:14]} 23. Kg2 {[%emt 0:00:08]} Bxc3 {[%emt 0:00:30]} 24. Qc2 {[%emt 0:02:22]} Bd4 {[%emt 0:00:58]} 25. a5 {[%emt 0:01:31]} bxa5 {[%emt 0:00:28]} 26. Qxc7 {[%emt 0:02:42]} Qxf2+ {[%emt 0:00:35]} 27. Kh3 {[%emt 0:00:31]} a4 {[%emt 0:00:33]} 28. Qxd6 {[%emt 0:00:42]} Qf6 {[%emt 0:00:39]} 29. Qf4 {[%emt 0:00:39]} Qxf4 {[%emt 0:00:30]} 30. gxf4 {[%emt 0:00:13]} a3 {[%emt 0:00:24]} 31. Kg4 {[%emt 0:00:43]} a2 {[%emt 0:00:13]} 32. f5 {[%emt 0:00:30]} a1=Q {[%emt 0:00:57]} 33. Kf4 {[%emt 0:00:38]} Qe1 {[%emt 0:00:28]} 34. f6 {[%emt 0:00:13]} Bxf6 {[%emt 0:00:13]} 35. d6 {[%emt 0:00:10]} Be5+ {[%emt 0:00:16]} 36. Kg4 {[%emt 0:00:32]} Bxd6 {[%emt 0:02:30]} 37. h3 {[%emt 0:00:26]} Re8 {[%emt 0:00:33]} 38. Kh5 {[%emt 0:00:22]} Re6 {[%emt 0:00:40]} 39. h4 {[%emt 0:00:29]} Qa5+ {[%emt 0:00:28]} 40. Kg4 {[%emt 0:00:35]} Re4+ {[%emt 0:00:00]} 41. Kf3 {[%emt 0:30:30]} Rb4 {[%emt 0:30:45]} 42. Ke3 {[%emt 0:00:18]} Qa3+ {[%emt 0:00:16]} 43. Kd2 {[%emt 0:00:12]} Rb2+ {[%emt 0:00:23]} 44. Kc1 {[%emt 0:00:15]} Qa1# {[%emt 0:00:26]} 0-1

[Event "CZE-ch Youth G10-G12-G14 2022"]
[Site "Luhacovice"]
[Date "2022.03.16"]
[Round "6.9"]
[White "Vlckova Linda"]
[Black "Tarielasvili Kira"]
[Result "0-1"]
[ECO "D30"]
[WhiteElo "1000"]
[BlackElo "1000"]
[Annotator "NA"]
[PlyCount "42"]
[EventDate "2022.03.12"]
[EventType "swiss"]
[EventCountry "CZE"]
[SourceTitle "playchess.com"]
[Source "ChessBase"]
[SourceQuality "1"]
[TimeControl "40/5400+30:1800+30"]

1. d4 {[%emt 0:00:04]} d5 {[%emt 0:00:38]} 2. c4 {[%emt 0:00:32]} e6 {[%emt 0:00:18]} 3. cxd5 {[%emt 0:00:28]} exd5 {[%emt 0:00:26]} 4. Nc3 {[%emt 0:00:23]} Nc6 {[%emt 0:02:33]} 5. Nf3 {[%emt 0:00:30]} Bb4 {[%emt 0:00:30]} 6. Bd2 {[%emt 0:00:30]} Nf6 {[%emt 0:00:30]} 7. e3 {[%emt 0:00:33]} O-O {[%emt 0:00:52]} 8. Bd3 {[%emt 0:00:15]} Bg4 {[%emt 0:00:29]} 9. Be2 {[%emt 0:00:16]} Re8 {[%emt 0:06:28]} 10. O-O {[%emt 0:00:38]} Bxc3 {[%emt 0:03:46]} 11. Bxc3 {[%emt 0:02:44]} Ne4 {[%emt 0:10:22]} 12. Qd3 {[%emt 0:00:30]} Nxc3 {[%emt 0:00:30]} 13. Qxc3 {[%emt 0:00:30]} Ne7 {[%emt 0:00:30]} 14. Qd3 {[%emt 0:00:30]} b6 {[%emt 0:03:16]} 15. Ng5 {[%emt 0:00:30]} Bf5 {[%emt 0:00:30]} 16. Qd2 {[%emt 0:00:16]} Ng6 {[%emt 0:03:19]} 17. Nf3 {[%emt 0:00:30]} c5 {[%emt 0:00:30]} 18. Bb5 {[%emt 0:00:52]} Re7 {[%emt 0:07:11]} 19. Bc6 {[%emt 0:00:27]} Rd7 {[%emt 0:05:01]} 20. Ng5 {[%emt 0:01:32]} Rc7 {[%emt 0:00:30]} 21. e4 {[%emt 0:00:42]} Bg4 {[%emt 0:04:38]} 0-1

[Event "CZE-ch Youth G10-G12-G14 2022"]
[Site "Luhacovice"]
[Date "2022.03.16"]
[Round "6.10"]
[White "Zadrapova Gabriela"]
[Black "Kubalova Nikol"]
[Result "1-0"]
[ECO "C01"]
[WhiteElo "1000"]
[BlackElo "1000"]
[Annotator "NA"]
[PlyCount "93"]
[EventDate "2022.03.12"]
[EventType "swiss"]
[EventCountry "CZE"]
[SourceTitle "playchess.com"]
[Source "ChessBase"]
[SourceQuality "1"]
[TimeControl "40/5400+30:1800+30"]

1. e4 {[%emt 0:00:04]} e6 {[%emt 0:00:02]} 2. d4 {[%emt 0:00:32]} Bd6 {[%emt 0:00:32]} 3. Nf3 {[%emt 0:00:43]} Nf6 {[%emt 0:01:08]} 4. Nc3 {[%emt 0:00:22]} Bb4 {[%emt 0:00:39]} 5. Bd2 {[%emt 0:00:46]} Bxc3 {[%emt 0:00:28]} 6. Bxc3 {[%emt 0:00:27]} Nxe4 {[%emt 0:00:26]} 7. Qe2 {[%emt 0:01:32]} d5 {[%emt 0:00:17]} 8. Ne5 {[%emt 0:01:07]} O-O {[%emt 0:01:38]} 9. Bb4 {[%emt 0:00:31]} Re8 {[%emt 0:00:30]} 10. Qf3 {[%emt 0:00:17]} c6 {[%emt 0:01:55]} 11. Qxf7+ {[%emt 0:00:18]} Kh8 {[%emt 0:01:06]} 12. Qh5 {[%emt 0:01:13]} Nf6 {[%emt 0:00:47]} 13. Qf3 {[%emt 0:01:06]} Na6 {[%emt 0:01:39]} 14. Nf7+ {[%emt 0:00:16]} Kg8 {[%emt 0:00:31]} 15. Nxd8 {[%emt 0:00:30]} Rxd8 {[%emt 0:00:24]} 16. Be7 {[%emt 0:00:10]} Re8 {[%emt 0:00:56]} 17. Bxf6 {[%emt 0:00:19]} gxf6 {[%emt 0:00:28]} 18. Qxf6 {[%emt 0:00:24]} Bd7 {[%emt 0:00:40]} 19. Bd3 {[%emt 0:00:28]} Nb4 {[%emt 0:00:59]} 20. O-O {[%emt 0:00:44]} Nxd3 {[%emt 0:01:01]} 21. cxd3 {[%emt 0:00:16]} Rad8 {[%emt 0:03:38]} 22. Rfe1 {[%emt 0:00:23]} Rf8 {[%emt 0:01:59]} 23. Qg5+ {[%emt 0:00:41]} Kh8 {[%emt 0:00:50]} 24. Re5 {[%emt 0:00:59]} Rc8 {[%emt 0:01:50]} 25. Re3 {[%emt 0:00:26]} c5 {[%emt 0:00:10]} 26. dxc5 {[%emt 0:01:17]} Rxc5 {[%emt 0:00:16]} 27. Rh3 {[%emt 0:00:27]} Rfc8 {[%emt 0:00:45]} 28. Qh6 {[%emt 0:00:23]} Rc1+ {[%emt 0:00:07]} 29. Rxc1 {[%emt 0:00:39]} Rxc1+ {[%emt 0:00:35]} 30. Qxc1 {[%emt 0:00:06]} e5 {[%emt 0:00:39]} 31. Qc8+ {[%emt 0:00:28]} Bxc8 {[%emt 0:00:20]} 32. Re3 {[%emt 0:00:21]} e4 {[%emt 0:00:35]} 33. dxe4 {[%emt 0:00:13]} dxe4 {[%emt 0:00:30]} 34. Rxe4 {[%emt 0:00:28]} Bf5 {[%emt 0:00:26]} 35. Rf4 {[%emt 0:00:41]} Bd3 {[%emt 0:01:00]} 36. g4 {[%emt 0:00:40]} b6 {[%emt 0:01:16]} 37. h3 {[%emt 0:00:17]} a6 {[%emt 0:00:23]} 38. Rf8+ {[%emt 0:00:12]} Kg7 {[%emt 0:00:08]} 39. Rd8 {[%emt 0:00:55]} Bg6 {[%emt 0:00:32]} 40. Kg2 {[%emt 0:00:22]} Be4+ {[%emt 0:00:37]} 41. f3 {[%emt 0:30:35]} Bd5 {[%emt 0:31:19]} 42. h4 {[%emt 0:00:23]} Kg6 {[%emt 0:00:09]} 43. h5+ {[%emt 0:00:41]} Kg7 {[%emt 0:00:56]} 44. g5 {[%emt 0:00:30]} a5 {[%emt 0:00:30]} 45. h6+ {[%emt 0:00:30]} Kg6 {[%emt 0:01:53]} 46. Kg3 {[%emt 0:01:56]} Kh5 {[%emt 0:00:07]} 47. f4 {[%emt 0:00:47]} 1-0

[Event "CZE-ch Youth G10-G12-G14 2022"]
[Site "Luhacovice"]
[Date "2022.03.16"]
[Round "6.11"]
[White "Martikanova Amalie"]
[Black "Topencikova Ellen"]
[Result "1-0"]
[ECO "B13"]
[WhiteElo "1245"]
[BlackElo "1000"]
[Annotator "NA"]
[PlyCount "59"]
[EventDate "2022.03.12"]
[EventType "swiss"]
[EventCountry "CZE"]
[SourceTitle "playchess.com"]
[Source "ChessBase"]
[SourceQuality "1"]
[TimeControl "40/5400+30:1800+30"]

1. e4 {[%emt 0:00:04]} c6 {[%emt 0:00:24]} 2. d4 {[%emt 0:00:25]} d5 {[%emt 0:00:17]} 3. exd5 {[%emt 0:00:42]} cxd5 {[%emt 0:00:16]} 4. Bd3 {[%emt 0:00:49]} Nf6 {[%emt 0:01:06]} 5. Bf4 {[%emt 0:01:10]} Bg4 {[%emt 0:00:38]} 6. f3 {[%emt 0:01:36]} Bh5 {[%emt 0:00:16]} 7. Nc3 {[%emt 0:01:52]} e6 {[%emt 0:00:59]} 8. Qd2 {[%emt 0:01:54]} Bd6 {[%emt 0:02:51]} 9. Bg5 {[%emt 0:02:13]} O-O {[%emt 0:00:31]} 10. O-O-O {[%emt 0:01:15]} h6 {[%emt 0:00:24]} 11. Be3 {[%emt 0:01:41]} e5 {[%emt 0:01:25]} 12. h4 {[%emt 0:01:28]} exd4 {[%emt 0:00:39]} 13. Bxd4 {[%emt 0:00:53]} Nc6 {[%emt 0:01:15]} 14. Bxf6 {[%emt 0:01:44]} Qxf6 {[%emt 0:00:48]} 15. g4 {[%emt 0:01:13]} d4 {[%emt 0:01:11]} 16. g5 {[%emt 0:03:33]} Qe7 {[%emt 0:02:03]} 17. Ne4 {[%emt 0:02:00]} Nb4 {[%emt 0:02:04]} 18. Kb1 {[%emt 0:02:09]} Nxd3 {[%emt 0:00:24]} 19. Qxd3 {[%emt 0:01:03]} hxg5 {[%emt 0:02:36]} 20. hxg5 {[%emt 0:01:35]} Bg6 {[%emt 0:00:19]} 21. Qf1 {[%emt 0:01:25]} Rfd8 {[%emt 0:01:28]} 22. Qh3 {[%emt 0:00:34]} f6 {[%emt 0:00:54]} 23. gxf6 {[%emt 0:02:41]} gxf6 {[%emt 0:02:06]} 24. Qg4 {[%emt 0:02:54]} Kf7 {[%emt 0:00:46]} 25. Rh6 {[%emt 0:01:19]} Bxe4 {[%emt 0:02:29]} 26. fxe4 {[%emt 0:00:47]} Qc7 {[%emt 0:00:56]} 27. Rh7+ {[%emt 0:01:27]} Ke8 {[%emt 0:00:24]} 28. Qg6+ {[%emt 0:01:20]} Kf8 {[%emt 0:01:38]} 29. Qxf6+ {[%emt 0:00:29]} Kg8 {[%emt 0:00:36]} 30. Qh8# {[%emt 0:00:14]} 1-0

[Event "CZE-ch Youth G10-G12-G14 2022"]
[Site "Luhacovice"]
[Date "2022.03.16"]
[Round "6.12"]
[White "Buchtova, Viktorie"]
[Black "Kozusnikova, Daniela"]
[Result "1/2-1/2"]
[ECO "C42"]
[WhiteElo "1464"]
[BlackElo "1364"]
[Annotator "NA"]
[PlyCount "63"]
[EventDate "2022.03.12"]
[EventType "swiss"]
[EventCountry "CZE"]
[SourceTitle "playchess.com"]
[Source "ChessBase"]
[SourceQuality "1"]
[TimeControl "40/5400+30:1800+30"]

1. e4 {[%emt 0:00:02]} e5 {[%emt 0:00:35]} 2. Nf3 {[%emt 0:00:07]} Nf6 {[%emt 0:00:07]} 3. Nxe5 {[%emt 0:00:10]} d6 {[%emt 0:00:05]} 4. Nf3 {[%emt 0:00:05]} Nxe4 {[%emt 0:00:07]} 5. c4 {[%emt 0:00:38]} Be7 {[%emt 0:00:33]} 6. d3 {[%emt 0:00:17]} Nf6 {[%emt 0:00:15]} 7. d4 {[%emt 0:01:07]} O-O {[%emt 0:00:39]} 8. Be3 {[%emt 0:01:27]} Bf5 {[%emt 0:02:02]} 9. Nc3 {[%emt 0:02:22]} h6 {[%emt 0:01:25]} 10. Ne2 {[%emt 0:05:09]} d5 {[%emt 0:02:19]} 11. c5 {[%emt 0:01:45]} Re8 {[%emt 0:04:21]} 12. Ng3 {[%emt 0:00:22]} Bh7 {[%emt 0:00:46]} 13. Ne5 {[%emt 0:21:51]} Bxc5 {[%emt 0:06:30]} 14. dxc5 {[%emt 0:01:01]} Rxe5 {[%emt 0:00:33]} 15. Be2 {[%emt 0:04:08]} c6 {[%emt 0:01:42]} 16. O-O {[%emt 0:00:39]} Nbd7 {[%emt 0:08:12]} 17. Rc1 {[%emt 0:05:03]} Ne4 {[%emt 0:06:42]} 18. Qb3 {[%emt 0:07:16]} Qc8 {[%emt 0:05:54]} 19. Rfd1 {[%emt 0:11:59]} Re7 {[%emt 0:07:37]} 20. Bg4 {[%emt 0:01:14]} Qc7 {[%emt 0:09:58]} 21. Nf5 {[%emt 0:02:52]} Bxf5 {[%emt 0:08:05]} 22. Bxf5 {[%emt 0:00:05]} Rae8 {[%emt 0:01:03]} 23. g3 {[%emt 0:06:37]} Ng5 {[%emt 0:08:52]} 24. Bf4 {[%emt 0:03:20]} Qc8 {[%emt 0:02:49]} 25. Bd6 {[%emt 0:01:24]} Re2 {[%emt 0:00:33]} 26. f4 {[%emt 0:08:22]} R8e3 {[%emt 0:02:41]} 27. Rc3 {[%emt 0:04:03]} Nf3+ {[%emt 0:00:36]} 28. Kf1 {[%emt 0:00:12]} Nxh2+ {[%emt 0:02:02]} 29. Kg1 {[%emt 0:00:05]} Nf3+ {[%emt 0:01:00]} 30. Kf1 {[%emt 0:00:06]} Nh2+ {[%emt 0:00:51]} 31. Kg1 {[%emt 0:00:03]} Nf3+ {[%emt 0:01:41]} 32. Kf1 {[%emt 0:00:13]} 1/2-1/2

[Event "CZE-ch Youth G10-G12-G14 2022"]
[Site "Luhacovice"]
[Date "2022.03.16"]
[Round "6.13"]
[White "Stara, Zuzana"]
[Black "Kammova, Katerina"]
[Result "1/2-1/2"]
[ECO "B13"]
[WhiteElo "1322"]
[BlackElo "1376"]
[Annotator "NA"]
[PlyCount "65"]
[EventDate "2022.03.12"]
[EventType "swiss"]
[EventCountry "CZE"]
[SourceTitle "playchess.com"]
[Source "ChessBase"]
[SourceQuality "1"]
[TimeControl "40/5400+30:1800+30"]

1. e4 {[%emt 0:00:03]} c6 {[%emt 0:00:10]} 2. d4 {[%emt 0:00:16]} d5 {[%emt 0:00:30]} 3. exd5 {[%emt 0:00:52]} cxd5 {[%emt 0:00:07]} 4. Nf3 {[%emt 0:01:27]} Nf6 {[%emt 0:00:48]} 5. Bg5 {[%emt 0:02:34]} Bf5 {[%emt 0:04:07]} 6. Be2 {[%emt 0:02:26]} e6 {[%emt 0:02:01]} 7. Nc3 {[%emt 0:01:15]} Nc6 {[%emt 0:01:41]} 8. a3 {[%emt 0:02:34]} a6 {[%emt 0:03:19]} 9. O-O {[%emt 0:02:33]} Bd6 {[%emt 0:01:21]} 10. Qd2 {[%emt 0:01:49]} h6 {[%emt 0:01:55]} 11. Bh4 {[%emt 0:02:04]} O-O {[%emt 0:01:28]} 12. Rfe1 {[%emt 0:04:05]} Rc8 {[%emt 0:04:16]} 13. Bd3 {[%emt 0:09:40]} Bxd3 {[%emt 0:00:50]} 14. Qxd3 {[%emt 0:00:59]} Be7 {[%emt 0:05:23]} 15. Rad1 {[%emt 0:03:02]} Na5 {[%emt 0:04:54]} 16. Ne5 {[%emt 0:04:08]} Nd7 {[%emt 0:04:03]} 17. Bxe7 {[%emt 0:07:39]} Qxe7 {[%emt 0:00:42]} 18. Ng4 {[%emt 0:07:53]} Qg5 {[%emt 0:06:12]} 19. Ne5 {[%emt 0:08:33]} Qd8 {[%emt 0:04:58]} 20. Ng4 {[%emt 0:05:38]} Qg5 {[%emt 0:04:17]} 21. Ne5 {[%emt 0:04:16]} Nxe5 {[%emt 0:01:35]} 22. Rxe5 {[%emt 0:02:44]} Qd8 {[%emt 0:00:33]} 23. b3 {[%emt 0:03:04]} Qc7 {[%emt 0:03:43]} 24. Re3 {[%emt 0:00:52]} Rfd8 {[%emt 0:00:37]} 25. Rg3 {[%emt 0:00:59]} Qf4 {[%emt 0:04:27]} 26. Rf3 {[%emt 0:02:17]} Qg5 {[%emt 0:00:44]} 27. Rg3 {[%emt 0:00:23]} Qf4 {[%emt 0:00:12]} 28. Rf3 {[%emt 0:00:40]} Qg5 {[%emt 0:00:09]} 29. Rg3 {[%emt 0:02:16]} Qf4 {[%emt 0:00:19]} 30. Ne2 {[%emt 0:01:51]} Qe4 {[%emt 0:01:18]} 31. Qxe4 {[%emt 0:04:50]} dxe4 {[%emt 0:00:08]} 32. Rc3 {[%emt 0:01:24]} Kf8 {[%emt 0:02:09]} 33. Kf1 {[%emt 0:00:26]} 1/2-1/2

[Event "CZE-ch Youth G10-G12-G14 2022"]
[Site "Luhacovice"]
[Date "2022.03.16"]
[Round "6.14"]
[White "Martinkova Klara"]
[Black "Horkova, Tereza"]
[Result "1-0"]
[ECO "B40"]
[WhiteElo "1177"]
[BlackElo "1375"]
[Annotator "NA"]
[PlyCount "87"]
[EventDate "2022.03.12"]
[EventType "swiss"]
[EventCountry "CZE"]
[SourceTitle "playchess.com"]
[Source "ChessBase"]
[SourceQuality "1"]
[TimeControl "40/5400+30:1800+30"]

1. e4 {[%emt 0:00:12]} c5 {[%emt 0:00:02]} 2. Nf3 {[%emt 0:00:13]} e6 {[%emt 0:00:07]} 3. d4 {[%emt 0:00:13]} cxd4 {[%emt 0:00:07]} 4. Nxd4 {[%emt 0:00:04]} Nf6 {[%emt 0:00:06]} 5. Bd3 {[%emt 0:00:15]} Nc6 {[%emt 0:00:18]} 6. Nxc6 {[%emt 0:00:12]} bxc6 {[%emt 0:00:14]} 7. Nd2 {[%emt 0:00:24]} d5 {[%emt 0:00:40]} 8. e5 {[%emt 0:01:34]} Nd7 {[%emt 0:00:36]} 9. Qe2 {[%emt 0:01:50]} Qc7 {[%emt 0:06:57]} 10. Nf3 {[%emt 0:01:04]} Be7 {[%emt 0:03:48]} 11. O-O {[%emt 0:00:27]} Nc5 {[%emt 0:04:05]} 12. Rd1 {[%emt 0:01:42]} Nxd3 {[%emt 0:00:22]} 13. Rxd3 {[%emt 0:00:12]} Ba6 {[%emt 0:00:19]} 14. Bf4 {[%emt 0:01:05]} Bxd3 {[%emt 0:00:34]} 15. Qxd3 {[%emt 0:00:13]} h6 {[%emt 0:06:42]} 16. Rd1 {[%emt 0:02:50]} O-O {[%emt 0:03:39]} 17. Qe3 {[%emt 0:00:59]} Qb6 {[%emt 0:08:06]} 18. Qc3 {[%emt 0:01:05]} Rab8 {[%emt 0:08:02]} 19. b3 {[%emt 0:00:28]} Bb4 {[%emt 0:02:20]} 20. Qd3 {[%emt 0:01:00]} Rfc8 {[%emt 0:06:27]} 21. c3 {[%emt 0:00:45]} Bf8 {[%emt 0:01:14]} 22. Nh4 {[%emt 0:02:52]} g5 {[%emt 0:04:28]} 23. Qg3 {[%emt 0:00:27]} Kh8 {[%emt 0:03:22]} 24. Bxg5 {[%emt 0:00:22]} hxg5 {[%emt 0:00:29]} 25. Qxg5 {[%emt 0:00:07]} Qd8 {[%emt 0:02:26]} 26. Qh5+ {[%emt 0:00:29]} Kg8 {[%emt 0:00:43]} 27. Rd3 {[%emt 0:02:12]} Bg7 {[%emt 0:02:16]} 28. Rg3 {[%emt 0:01:15]} Rc7 {[%emt 0:04:08]} 29. Qh6 {[%emt 0:02:21]} Qf8 {[%emt 0:06:39]} 30. f4 {[%emt 0:02:16]} f5 {[%emt 0:10:21]} 31. exf6 {[%emt 0:00:12]} Rbb7 {[%emt 0:01:06]} 32. fxg7 {[%emt 0:00:18]} Rxg7 {[%emt 0:03:11]} 33. Qxe6+ {[%emt 0:01:24]} Qf7 {[%emt 0:04:11]} 34. Rxg7+ {[%emt 0:01:44]} Kxg7 {[%emt 0:00:28]} 35. Nf5+ {[%emt 0:01:07]} Kh8 {[%emt 0:03:19]} 36. Qh6+ {[%emt 0:02:21]} Kg8 {[%emt 0:01:05]} 37. Qxc6 {[%emt 0:01:31]} Rb6 {[%emt 0:03:02]} 38. Nh6+ {[%emt 0:01:33]} Kg7 {[%emt 0:00:12]} 39. Qxb6 {[%emt 0:01:46]} Qe8 {[%emt 0:02:29]} 40. Nf5+ {[%emt 0:01:05]} Kg8 {[%emt 0:00:18]} 41. Qf2 {[%emt 0:30:59]} Qe4 {[%emt 0:30:31]} 42. Qg3+ {[%emt 0:01:06]} Kf8 {[%emt 0:00:18]} 43. Qg7+ {[%emt 0:00:15]} Ke8 {[%emt 0:00:07]} 44. Nd6+ {[%emt 0:00:14]} 1-0

[Event "CZE-ch Youth G10-G12-G14 2022"]
[Site "Luhacovice"]
[Date "2022.03.16"]
[Round "6.15"]
[White "Bartova Hana"]
[Black "Slivova, Linda"]
[Result "0-1"]
[ECO "B12"]
[WhiteElo "1000"]
[BlackElo "1298"]
[Annotator "NA"]
[PlyCount "106"]
[EventDate "2022.03.12"]
[EventType "swiss"]
[EventCountry "CZE"]
[SourceTitle "playchess.com"]
[Source "ChessBase"]
[SourceQuality "1"]
[TimeControl "40/5400+30:1800+30"]

1. e4 {[%emt 0:00:06]} c6 {[%emt 0:00:06]} 2. d4 {[%emt 0:01:11]} d5 {[%emt 0:00:14]} 3. e5 {[%emt 0:00:54]} Bf5 {[%emt 0:00:43]} 4. f4 {[%emt 0:03:05]} e6 {[%emt 0:03:22]} 5. Nf3 {[%emt 0:01:26]} Nd7 {[%emt 0:04:27]} 6. Be2 {[%emt 0:02:03]} c5 {[%emt 0:02:42]} 7. c3 {[%emt 0:02:38]} a6 {[%emt 0:05:56]} 8. O-O {[%emt 0:03:19]} Ne7 {[%emt 0:00:41]} 9. Be3 {[%emt 0:01:19]} Nc6 {[%emt 0:02:28]} 10. Nbd2 {[%emt 0:02:22]} Be7 {[%emt 0:04:21]} 11. b3 {[%emt 0:07:06]} O-O {[%emt 0:04:26]} 12. c4 {[%emt 0:04:23]} Nb4 {[%emt 0:04:58]} 13. Ne1 {[%emt 0:06:25]} cxd4 {[%emt 0:08:25]} 14. Bxd4 {[%emt 0:00:35]} Rc8 {[%emt 0:03:27]} 15. Bc3 {[%emt 0:04:05]} Bc5+ {[%emt 0:05:40]} 16. Kh1 {[%emt 0:03:04]} h6 {[%emt 0:13:09]} 17. a3 {[%emt 0:01:33]} Nc6 {[%emt 0:00:40]} 18. Bd3 {[%emt 0:02:37]} Bxd3 {[%emt 0:01:08]} 19. Nxd3 {[%emt 0:00:18]} Ba7 {[%emt 0:03:29]} 20. Qg4 {[%emt 0:04:39]} Ne7 {[%emt 0:02:21]} 21. Qh4 {[%emt 0:06:42]} Nf5 {[%emt 0:04:24]} 22. Qxd8 {[%emt 0:00:39]} Rfxd8 {[%emt 0:00:10]} 23. g4 {[%emt 0:02:22]} Ne7 {[%emt 0:02:39]} 24. f5 {[%emt 0:02:54]} dxc4 {[%emt 0:01:23]} 25. Nxc4 {[%emt 0:01:25]} b5 {[%emt 0:00:45]} 26. Ba5 {[%emt 0:01:45]} bxc4 {[%emt 0:03:08]} 27. Bxd8 {[%emt 0:00:26]} Rxd8 {[%emt 0:00:09]} 28. bxc4 {[%emt 0:00:25]} Nc6 {[%emt 0:01:37]} 29. Rad1 {[%emt 0:02:48]} Ndxe5 {[%emt 0:01:36]} 30. Nxe5 {[%emt 0:00:40]} Rxd1 {[%emt 0:00:07]} 31. Rxd1 {[%emt 0:00:37]} Nxe5 {[%emt 0:00:07]} 32. fxe6 {[%emt 0:00:34]} fxe6 {[%emt 0:00:20]} 33. Rc1 {[%emt 0:01:01]} Bc5 {[%emt 0:00:23]} 34. Rc3 {[%emt 0:01:50]} Nxg4 {[%emt 0:00:17]} 35. h3 {[%emt 0:00:20]} Ne5 {[%emt 0:00:40]} 36. a4 {[%emt 0:00:42]} Kf7 {[%emt 0:00:29]} 37. Kg2 {[%emt 0:00:06]} Kf6 {[%emt 0:00:22]} 38. Kg3 {[%emt 0:00:19]} Kf5 {[%emt 0:00:56]} 39. Kg2 {[%emt 0:00:59]} Ke4 {[%emt 0:00:34]} 40. Kf1 {[%emt 0:00:09]} Kd4 {[%emt 0:00:37]} 41. Rg3 {[%emt 0:30:36]} g5 {[%emt 0:30:12]} 42. Ke2 {[%emt 0:00:23]} Kxc4 {[%emt 0:00:16]} 43. Kd2 {[%emt 0:00:36]} Kb4 {[%emt 0:01:00]} 44. Rc3 {[%emt 0:01:12]} h5 {[%emt 0:03:09]} 45. Kc2 {[%emt 0:00:37]} g4 {[%emt 0:01:13]} 46. hxg4 {[%emt 0:02:23]} hxg4 {[%emt 0:00:12]} 47. Rg3 {[%emt 0:00:27]} Bf2 {[%emt 0:00:37]} 48. Rg2 {[%emt 0:00:12]} g3 {[%emt 0:00:08]} 49. Kd2 {[%emt 0:01:01]} Kxa4 {[%emt 0:00:24]} 50. Ke2 {[%emt 0:00:40]} Kb3 {[%emt 0:00:16]} 51. Rxf2 {[%emt 0:00:12]} gxf2 {[%emt 0:00:08]} 52. Kxf2 {[%emt 0:00:08]} a5 {[%emt 0:00:03]} 53. Ke2 {[%emt 0:00:23]} a4 {[%emt 0:00:13]} 0-1